fUST/lending_fUST_20240425
["ID","MTS","AMOUNT","RATE_DAILY","PERIOD"]
[323470897,1714029075864,-2358.88,0.00019452,2]
[323470898,1714029075873,-1011.49,0.00019452,2]
[323470899,1714029075881,-500.0,0.00019452,2]
[323470900,1714029075890,-2667.62,0.00019452,2]
[323470901,1714029075900,-506.06310723,0.00019452,2]
[323470902,1714029075909,-500.0,0.00019452,2]
[323470903,1714029075919,-1174.54,0.00019452,2]
[323470904,1714029075928,-723.31,0.00019452,2]
[323470905,1714029075937,-592.52,0.00019452,2]
[323470906,1714029075947,-500.0,0.00019452,2]
[323470907,1714029075956,-557.02,0.00019452,2]
[323470908,1714029075965,-696.57,0.00019452,2]
[323470909,1714029075975,-646.03,0.00019452,2]
[323470910,1714029075984,-1084.85,0.00019452,2]
[323470911,1714029075994,-584.17,0.00019452,2]
[323470912,1714029076003,-500.0,0.00019452,2]
[323470913,1714029076017,-762.04,0.00019452,2]
[323470914,1714029076027,-509.24,0.00019452,2]
[323470915,1714029076036,-500.0,0.00019452,2]
[323470916,1714029076046,-1828.52,0.00019452,2]
[323470917,1714029076057,-525.09,0.00019452,2]
[323470918,1714029076066,-9714.64,0.00019452,2]
[323470919,1714029076075,-500.0,0.00019452,2]
[323470920,1714029076086,-1951.68,0.00019452,2]
[323470921,1714029076095,-1197.24,0.00019452,2]
[323470922,1714029076104,-639.36,0.00019452,2]
[323470923,1714029076116,-286.27370303,0.00019452,2]
[323470924,1714029076126,-375.35299716,0.00019452,2]
[323470925,1714029076136,-1048.02,0.00019452,2]
[323470926,1714029076145,-2000.98,0.00019452,2]
[323470927,1714029076154,-594.44,0.00019452,2]
[323470928,1714029076164,-1048.7,0.00019452,2]
[323470929,1714029076173,-500.0,0.00019452,2]
[323470930,1714029076182,-1181.52,0.00019452,2]
[323470931,1714029076191,-1309.77,0.00019452,2]
[323470932,1714029076200,-500.0,0.00019452,2]
[323470933,1714029076210,-678.72,0.00019452,2]
[323470934,1714029076220,-811.0,0.00019452,2]
[323470935,1714029076229,-1302.25,0.00019452,2]
[323470936,1714029076239,-818.02,0.00019726,2]
[323470937,1714029076248,-619.95,0.00019726,2]
[323470938,1714029076257,-568.07,0.00019726,2]
[323470939,1714029076267,-500.0,0.00019726,2]
[323470940,1714029076397,-793.19,0.00019726,2]
[323470941,1714029076408,-616.43,0.00019726,2]
[323470942,1714029076418,-583.35,0.00019726,2]
[323470943,1714029076428,-500.0,0.00019726,2]
[323470944,1714029076438,-500.0,0.00019726,2]
[323470945,1714029076447,-500.0,0.00019726,2]
[323470946,1714029076456,-500.0,0.00019726,2]
[323470947,1714029076465,-500.0,0.00019726,2]
[323470948,1714029076474,-500.0,0.00019726,2]
[323470949,1714029076483,-669.58,0.00019726,2]
[323470950,1714029076493,-500.0,0.00019726,2]
[323470951,1714029076502,-709.97,0.00019726,2]
[323470952,1714029076512,-624.07632917,0.00019726,2]
[323470953,1714029076521,-1057.71,0.00019726,2]
[323470954,1714029076530,-500.56,0.00019726,2]
[323470955,1714029076539,-633.35,0.00019726,2]
[323470956,1714029076548,-500.0,0.00019726,2]
[323470957,1714029076558,-816.77,0.00019726,2]
[323470958,1714029076567,-1060.08,0.00019726,2]
[323470959,1714029076577,-500.0,0.00019726,2]
[323470960,1714029076586,-890.42,0.00019726,2]
[323470961,1714029076595,-929.12,0.00019726,2]
[323470962,1714029076605,-630.9,0.00019726,2]
[323470963,1714029076616,-739.88,0.00019726,2]
[323470964,1714029076625,-500.0,0.00019726,2]
[323470965,1714029076634,-500.0,0.00019726,2]
[323470966,1714029076643,-500.0,0.00019726,2]
[323470967,1714029076653,-592.11,0.00019726,2]
[323470968,1714029076662,-822.31,0.00019726,2]
[323470969,1714029076672,-500.0,0.00019726,2]
[323470970,1714029076682,-739.2,0.00019726,2]
[323470971,1714029076691,-605.37,0.00019726,2]
[323470972,1714029076700,-558.24,0.00019726,2]
[323470973,1714029076709,-546.26,0.00019726,2]
[323470974,1714029076719,-1237.28,0.00019726,2]
[323470975,1714029076729,-500.0,0.00019726,2]
[323470976,1714029076740,-1489.98,0.00019726,2]
[323470977,1714029076750,-500.0,0.00019726,2]
[323470978,1714029076762,-958.76,0.00019726,2]
[323470979,1714029076772,-500.0,0.00019726,2]
[323470980,1714029076781,-1050.99,0.00019726,2]
[323470981,1714029076793,-685.4,0.00019726,2]
[323470982,1714029076803,-500.0,0.00019726,2]
[323470983,1714029076814,-541.01,0.00019726,2]
[323470984,1714029076824,-500.0,0.00019726,2]
[323470985,1714029076834,-946.6,0.00019726,2]
[323470986,1714029076846,-1067.85,0.00019726,2]
[323470987,1714029076856,-1592.53,0.00019726,2]
[323470988,1714029076867,-1450.14,0.00019726,2]
[323470989,1714029076876,-500.0,0.00019726,2]
[323470990,1714029076885,-835.63,0.00019726,2]
[323470991,1714029076895,-770.33,0.00019726,2]
[323470992,1714029076905,-500.0,0.00019726,2]
[323470993,1714029076916,-2942.75,0.00019726,2]
[323470994,1714029076926,-769.52,0.00019726,2]
[323470995,1714029076936,-1283.68,0.00019726,2]
[323470996,1714029076947,-536.62,0.00019726,2]
[323470997,1714029076957,-645.16931413,0.00019726,2]
[323470998,1714029076967,-575.83,0.00019726,2]
[323470999,1714029076977,-3973.6,0.00019726,2]
[323471000,1714029076988,-500.0,0.00019726,2]
[323471001,1714029076997,-2242.97,0.00019726,2]
[323471002,1714029077009,-3243.05,0.00019726,2]
[323471003,1714029077020,-500.0,0.00019726,2]
[323471004,1714029077029,-508.57,0.00019726,2]
[323471005,1714029077039,-631.78,0.00019726,2]
[323471006,1714029077049,-1375.26,0.00019726,2]
[323471007,1714029077059,-500.0,0.00019726,2]
[323471008,1714029077069,-500.0,0.00019726,2]
[323471009,1714029077078,-1387.72,0.00019726,2]
[323471010,1714029077089,-500.0,0.00019726,2]
[323471011,1714029077100,-1846.12,0.00019726,2]
[323471012,1714029077111,-500.0,0.00019726,2]
[323471013,1714029077121,-800.02,0.00019726,2]
[323471014,1714029077130,-646.8,0.00019726,2]
[323471015,1714029077141,-2358.88,0.00019726,2]
[323471016,1714029077151,-1011.49,0.00019726,2]
[323471017,1714029077160,-500.0,0.00019726,2]
[323471018,1714029077170,-2667.62,0.00019726,2]
[323471019,1714029077180,-500.0,0.00019726,2]
[323471020,1714029077190,-1174.54,0.00019726,2]
[323471021,1714029077199,-723.31,0.00019726,2]
[323471022,1714029077209,-592.52,0.00019726,2]
[323471023,1714029077219,-500.0,0.00019726,2]
[323471024,1714029077229,-557.02,0.00019726,2]
[323471025,1714029077239,-696.57,0.00019726,2]
[323471026,1714029077248,-646.03,0.00019726,2]
[323471027,1714029077257,-1084.85,0.00019726,2]
[323471028,1714029077267,-584.17,0.00019726,2]
[323471029,1714029077276,-500.0,0.00019726,2]
[323471030,1714029077285,-762.04,0.00019726,2]
[323471031,1714029077294,-509.24,0.00019726,2]
[323471032,1714029077303,-500.0,0.00019726,2]
[323471033,1714029077312,-1828.52,0.00019726,2]
[323471034,1714029077322,-525.09,0.00019726,2]
[323471035,1714029077332,-9714.64,0.00019726,2]
[323471036,1714029077343,-500.0,0.00019726,2]
[323471037,1714029077353,-1951.68,0.00019726,2]
[323471038,1714029077366,-1197.24,0.00019726,2]
[323471039,1714029077376,-639.36,0.00019726,2]
[323471040,1714029077385,-1048.02,0.00019726,2]
[323471041,1714029077394,-2000.98,0.00019726,2]
[323471042,1714029077403,-594.44,0.00019726,2]
[323471043,1714029077412,-1048.7,0.00019726,2]
[323471044,1714029077422,-429.60018473,0.00019726,2]
[323471045,1714029077431,-1181.52,0.00019726,2]
[323471046,1714029077440,-1309.77,0.00019726,2]
[323471047,1714029077449,-500.0,0.00019726,2]
[323471048,1714029077458,-678.72,0.00019726,2]
[323471049,1714029077467,-811.0,0.00019726,2]
[323471050,1714029077477,-1302.25,0.00019726,2]
[323471051,1714029077485,-150.0,0.0001981,2]
[323471052,1714029077494,-463.62584945,0.0002,2]
[323471053,1714029077503,-400.0,0.0002,2]
[323471054,1714029077512,-319.76886189,0.0002,2]
[323471055,1714029077521,-80000.0,0.0002,2]
[323471056,1714029077530,-154.90705577,0.0002,2]
[323471057,1714029077539,-154.90705577,0.0002,2]
[323471058,1714029077548,-154.90705577,0.0002,2]
[323471059,1714029077557,-172.1299701,0.0002,2]
[323471060,1714029077566,-183.36995134,0.0002,2]
[323471061,1714029077574,-500.0,0.0002,2]
[323471062,1714029077583,-493.0,0.0002,2]
[323471063,1714029077593,-533.65544776,0.0002,2]
[323471064,1714029077602,-6000.0,0.0002,3]
[323471065,1714029077614,-7330.0,0.0002,3]
[323471066,1714029077623,-154.88305376,0.0002,2]
[323471067,1714029077633,-67368.42695755,0.0002,2]
[323471068,1714029077642,-1007.13751586,0.0002,4]
[323471069,1714029077652,-510.00697675,0.0002,2]
[323471070,1714029077661,-818.02,0.0002,2]
[323471071,1714029077670,-619.95,0.0002,2]
[323471072,1714029077679,-568.07,0.0002,2]
[323471073,1714029077688,-500.0,0.0002,2]
[323471074,1714029077696,-793.19,0.0002,2]
[323471075,1714029077706,-616.43,0.0002,2]
[323471076,1714029077715,-583.35,0.0002,2]
[323471077,1714029077724,-500.0,0.0002,2]
[323471078,1714029077733,-500.0,0.0002,2]
[323471079,1714029077742,-500.0,0.0002,2]
[323471080,1714029077751,-250.06911495,0.0002,2]
[323471081,1714029077761,-500.0,0.0002,2]
[323471082,1714029077770,-500.0,0.0002,2]
[323471083,1714029077779,-669.58,0.0002,2]
[323471084,1714029077788,-500.0,0.0002,2]
[323471085,1714029077797,-709.97,0.0002,2]
[323471086,1714029077807,-1057.71,0.0002,2]
[323471087,1714029077816,-500.56,0.0002,2]
[323471088,1714029077825,-633.35,0.0002,2]
[323471089,1714029077834,-611.61071134,0.0002,2]
[323471090,1714029077843,-816.77,0.0002,2]
[323471091,1714029077852,-1060.08,0.0002,2]
[323471092,1714029077865,-500.0,0.0002,2]
[323471093,1714029077874,-890.42,0.0002,2]
[323471094,1714029077883,-929.12,0.0002,2]
[323471095,1714029077892,-630.9,0.0002,2]
[323471096,1714029077901,-739.88,0.0002,2]
[323471097,1714029077910,-500.0,0.0002,2]
[323471098,1714029077920,-500.0,0.0002,2]
[323471099,1714029077929,-500.0,0.0002,2]
[323471100,1714029077938,-177.25,0.0002,2]
[323471101,1714029077947,-592.11,0.0002,2]
[323471102,1714029077957,-822.31,0.0002,2]
[323471103,1714029077966,-500.0,0.0002,2]
[323471104,1714029077975,-739.2,0.0002,2]
[323471105,1714029077984,-605.37,0.0002,2]
[323471106,1714029077993,-558.24,0.0002,2]
[323471107,1714029078003,-546.26,0.0002,2]
[323471108,1714029078017,-1237.28,0.0002,2]
[323471109,1714029078025,-500.0,0.0002,2]
[323471110,1714029078034,-1489.98,0.0002,2]
[323471111,1714029078043,-500.0,0.0002,2]
[323471112,1714029078054,-958.76,0.0002,2]
[323471113,1714029078063,-500.0,0.0002,2]
[323471114,1714029078072,-1050.99,0.0002,2]
[323471115,1714029078082,-685.4,0.0002,2]
[323471116,1714029078091,-500.0,0.0002,2]
[323471117,1714029078100,-541.01,0.0002,2]
[323471118,1714029078110,-500.0,0.0002,2]
[323471119,1714029078118,-946.6,0.0002,2]
[323471120,1714029078128,-1067.85,0.0002,2]
[323471121,1714029078235,-1592.53,0.0002,2]
[323471122,1714029078245,-1450.14,0.0002,2]
[323471123,1714029078254,-200.0,0.0002,2]
[323471124,1714029078264,-500.0,0.0002,2]
[323471125,1714029078273,-835.63,0.0002,2]
[323471126,1714029078282,-491.0,0.0002,2]
[323471127,1714029078291,-770.33,0.0002,2]
[323471128,1714029078300,-500.0,0.0002,2]
[323471129,1714029078310,-2942.75,0.0002,2]
[323471130,1714029078319,-827.57166395,0.0002,2]
[323471131,1714029078328,-769.52,0.0002,2]
[323471132,1714029078337,-1283.68,0.0002,2]
[323471133,1714029078346,-536.62,0.0002,2]
[323471134,1714029078355,-575.83,0.0002,2]
[323471135,1714029078366,-3973.6,0.0002,2]
[323471136,1714029078375,-500.0,0.0002,2]
[323471137,1714029078384,-2242.97,0.0002,2]
[323471138,1714029078393,-3243.05,0.0002,2]
[323471139,1714029078403,-500.0,0.0002,2]
[323471140,1714029078412,-508.57,0.0002,2]
[323471141,1714029078421,-631.78,0.0002,2]
[323471142,1714029078430,-1375.26,0.0002,2]
[323471143,1714029078439,-500.0,0.0002,2]
[323471144,1714029078448,-500.0,0.0002,2]
[323471145,1714029078457,-1387.72,0.0002,2]
[323471146,1714029078466,-500.0,0.0002,2]
[323471147,1714029078475,-1846.12,0.0002,2]
[323471148,1714029078484,-500.0,0.0002,2]
[323471149,1714029078493,-800.02,0.0002,2]
[323471150,1714029078502,-646.8,0.0002,2]
[323471151,1714029078511,-2358.88,0.0002,2]
[323471152,1714029078520,-1011.49,0.0002,2]
[323471153,1714029078528,-500.0,0.0002,2]
[323471154,1714029078537,-2667.62,0.0002,2]
[323471155,1714029078546,-500.0,0.0002,2]
[323471156,1714029078555,-1174.54,0.0002,2]
[323471157,1714029078564,-723.31,0.0002,2]
[323471158,1714029078573,-592.52,0.0002,2]
[323471159,1714029078581,-500.0,0.0002,2]
[323471160,1714029078590,-557.02,0.0002,2]
[323471161,1714029078599,-696.57,0.0002,2]
[323471162,1714029078608,-646.03,0.0002,2]
[323471163,1714029078618,-1084.85,0.0002,2]
[323471164,1714029078627,-584.17,0.0002,2]
[323471165,1714029078636,-500.0,0.0002,2]
[323471166,1714029078645,-762.04,0.0002,2]
[323471167,1714029078654,-509.24,0.0002,2]
[323471168,1714029078663,-500.0,0.0002,2]
[323471169,1714029078672,-1828.52,0.0002,2]
[323471170,1714029078681,-525.09,0.0002,2]
[323471171,1714029078691,-9714.64,0.0002,2]
[323471172,1714029078700,-500.0,0.0002,2]
[323471173,1714029078709,-1951.68,0.0002,2]
[323471174,1714029078718,-1197.24,0.0002,2]
[323471175,1714029078727,-639.36,0.0002,2]
[323471176,1714029078736,-1048.02,0.0002,2]
[323471177,1714029078746,-2000.98,0.0002,2]
[323471178,1714029078755,-594.44,0.0002,2]
[323471179,1714029078764,-1048.7,0.0002,2]
[323471180,1714029078773,-1181.52,0.0002,2]
[323471181,1714029078782,-1309.77,0.0002,2]
[323471182,1714029078792,-500.0,0.0002,2]
[323471183,1714029078801,-678.72,0.0002,2]
[323471184,1714029078810,-811.0,0.0002,2]
[323471185,1714029078820,-1302.25,0.0002,2]
[323471186,1714029078829,-620.0,0.00020223,2]
[323471187,1714029078838,-818.02,0.00020273,2]
[323471188,1714029078847,-619.95,0.00020273,2]
[323471189,1714029078856,-568.07,0.00020273,2]
[323471190,1714029078866,-545.36853343,0.00020273,2]
[323471191,1714029078875,-793.19,0.00020273,2]
[323471192,1714029078884,-616.43,0.00020273,2]
[323471193,1714029078893,-583.35,0.00020273,2]
[323471194,1714029078902,-500.0,0.00020273,2]
[323471195,1714029078911,-500.0,0.00020273,2]
[323471196,1714029078921,-500.0,0.00020273,2]
[323471197,1714029078930,-500.0,0.00020273,2]
[323471198,1714029078939,-258.56883899,0.00020273,2]
[323471199,1714029078948,-669.58,0.00020273,2]
[323471200,1714029078957,-500.0,0.00020273,2]
[323471201,1714029078966,-709.97,0.00020273,2]
[323471202,1714029078976,-1057.71,0.00020273,2]
[323471203,1714029078985,-500.56,0.00020273,2]
[323471204,1714029078994,-633.35,0.00020273,2]
[323471205,1714029079020,-816.77,0.00020273,2]
[323471206,1714029079037,-1060.08,0.00020273,2]
[323471207,1714029079055,-500.0,0.00020273,2]
[323471208,1714029079074,-890.42,0.00020273,2]
[323471209,1714029079089,-929.12,0.00020273,2]
[323471210,1714029079105,-630.9,0.00020273,2]
[323471211,1714029079122,-739.88,0.00020273,2]
[323471212,1714029079140,-500.0,0.00020273,2]
[323471213,1714029079155,-500.0,0.00020273,2]
[323471214,1714029079173,-500.0,0.00020273,2]
[323471215,1714029079189,-592.11,0.00020273,2]
[323471216,1714029079204,-822.31,0.00020273,2]
[323471217,1714029079219,-500.0,0.00020273,2]
[323471218,1714029079236,-739.2,0.00020273,2]
[323471219,1714029079250,-605.37,0.00020273,2]
[323471220,1714029079263,-558.24,0.00020273,2]
[323471221,1714029079279,-546.26,0.00020273,2]
[323471222,1714029079290,-1237.28,0.00020273,2]
[323471223,1714029079305,-500.0,0.00020273,2]
[323471224,1714029079317,-1489.98,0.00020273,2]
[323471225,1714029079331,-500.0,0.00020273,2]
[323471226,1714029079345,-958.76,0.00020273,2]
[323471227,1714029079359,-500.0,0.00020273,2]
[323471228,1714029079373,-1050.99,0.00020273,2]
[323471229,1714029079386,-685.4,0.00020273,2]
[323471230,1714029079400,-472.94163114,0.00020273,2]
[323471231,1714029079413,-541.01,0.00020273,2]
[323471232,1714029079429,-500.0,0.00020273,2]
[323471233,1714029079442,-946.6,0.00020273,2]
[323471234,1714029079456,-1067.85,0.00020273,2]
[323471235,1714029079470,-1592.53,0.00020273,2]
[323471236,1714029079483,-1450.14,0.00020273,2]
[323471237,1714029079496,-500.0,0.00020273,2]
[323471238,1714029079509,-835.63,0.00020273,2]
[323471239,1714029079523,-770.33,0.00020273,2]
[323471240,1714029079536,-500.0,0.00020273,2]
[323471241,1714029079550,-2942.75,0.00020273,2]
[323471242,1714029079564,-769.52,0.00020273,2]
[323471243,1714029079576,-1283.68,0.00020273,2]
[323471244,1714029079589,-536.62,0.00020273,2]
[323471245,1714029079603,-575.83,0.00020273,2]
[323471246,1714029079617,-3973.6,0.00020273,2]
[323471247,1714029079631,-500.0,0.00020273,2]
[323471248,1714029079644,-2242.97,0.00020273,2]
[323471249,1714029079657,-3243.05,0.00020273,2]
[323471250,1714029079670,-500.0,0.00020273,2]
[323471251,1714029079684,-508.57,0.00020273,2]
[323471252,1714029079698,-631.78,0.00020273,2]
[323471253,1714029079711,-1375.26,0.00020273,2]
[323471254,1714029079725,-399.02478507,0.00020273,2]
[323471255,1714029079738,-500.0,0.00020273,2]
[323471256,1714029079752,-1387.72,0.00020273,2]
[323471257,1714029079765,-500.0,0.00020273,2]
[323471258,1714029079779,-1846.12,0.00020273,2]
[323471259,1714029079791,-521.47665075,0.00020273,2]
[323471260,1714029079804,-800.02,0.00020273,2]
[323471261,1714029079818,-646.8,0.00020273,2]
[323471262,1714029079831,-2358.88,0.00020273,2]
[323471263,1714029079845,-1011.49,0.00020273,2]
[323471264,1714029079858,-500.0,0.00020273,2]
[323471265,1714029079872,-2667.62,0.00020273,2]
[323471266,1714029079886,-500.0,0.00020273,2]
[323471267,1714029079906,-1174.54,0.00020273,2]
[323471268,1714029079920,-723.31,0.00020273,2]
[323471269,1714029079934,-592.52,0.00020273,2]
[323471270,1714029079948,-500.0,0.00020273,2]
[323471271,1714029079962,-557.02,0.00020273,2]
[323471272,1714029079974,-696.57,0.00020273,2]
[323471273,1714029079988,-646.03,0.00020273,2]
[323471274,1714029080001,-1084.85,0.00020273,2]
[323471275,1714029080017,-584.17,0.00020273,2]
[323471276,1714029080036,-500.0,0.00020273,2]
[323471277,1714029080053,-762.04,0.00020273,2]
[323471278,1714029080067,-509.24,0.00020273,2]
[323471279,1714029080080,-332.01792558,0.00020273,2]
[323471280,1714029080096,-1828.52,0.00020273,2]
[323471281,1714029080111,-525.09,0.00020273,2]
[323471282,1714029080124,-9714.64,0.00020273,2]
[323471283,1714029080134,-500.0,0.00020273,2]
[323471284,1714029080144,-1951.68,0.00020273,2]
[323471285,1714029080153,-1197.24,0.00020273,2]
[323471286,1714029080317,-639.36,0.00020273,2]
[323471287,1714029080341,-1048.02,0.00020273,2]
[323471288,1714029080352,-2000.98,0.00020273,2]
[323471289,1714029080363,-594.44,0.00020273,2]
[323471290,1714029080372,-1048.7,0.00020273,2]
[323471291,1714029080381,-1181.52,0.00020273,2]
[323471292,1714029080390,-1309.77,0.00020273,2]
[323471293,1714029080400,-500.0,0.00020273,2]
[323471294,1714029080410,-678.72,0.00020273,2]
[323471295,1714029080419,-811.0,0.00020273,2]
[323471296,1714029080429,-1302.25,0.00020273,2]
[323471297,1714029080439,-2300.51867519,0.000205,5]
[323471298,1714029080448,-818.02,0.00020547,2]
[323471299,1714029080457,-619.95,0.00020547,2]
[323471300,1714029080466,-568.07,0.00020547,2]
[323471301,1714029080476,-793.19,0.00020547,2]
[323471302,1714029080485,-616.43,0.00020547,2]
[323471303,1714029080494,-583.35,0.00020547,2]
[323471304,1714029080503,-500.0,0.00020547,2]
[323471305,1714029080513,-500.0,0.00020547,2]
[323471306,1714029080522,-500.0,0.00020547,2]
[323471307,1714029080532,-500.0,0.00020547,2]
[323471308,1714029080541,-669.58,0.00020547,2]
[323471309,1714029080551,-500.0,0.00020547,2]
[323471310,1714029080561,-2121.58034784,0.00020547,2]
[323471311,1714029080570,-709.97,0.00020547,2]
[323471312,1714029080580,-1057.71,0.00020547,2]
[323471313,1714029080590,-500.56,0.00020547,2]
[323471314,1714029080599,-633.35,0.00020547,2]
[323471315,1714029080609,-816.77,0.00020547,2]
[323471316,1714029080618,-1060.08,0.00020547,2]
[323471317,1714029080628,-500.0,0.00020547,2]
[323471318,1714029080637,-890.42,0.00020547,2]
[323471319,1714029080647,-929.12,0.00020547,2]
[323471320,1714029080657,-630.9,0.00020547,2]
[323471321,1714029080666,-739.88,0.00020547,2]
[323471322,1714029080675,-500.0,0.00020547,2]
[323471323,1714029080684,-500.0,0.00020547,2]
[323471324,1714029080693,-500.0,0.00020547,2]
[323471325,1714029080703,-592.11,0.00020547,2]
[323471326,1714029080712,-822.31,0.00020547,2]
[323471327,1714029080721,-500.0,0.00020547,2]
[323471328,1714029080731,-739.2,0.00020547,2]
[323471329,1714029080740,-605.37,0.00020547,2]
[323471330,1714029080749,-558.24,0.00020547,2]
[323471331,1714029080758,-546.26,0.00020547,2]
[323471332,1714029080767,-1237.28,0.00020547,2]
[323471333,1714029080776,-500.0,0.00020547,2]
[323471334,1714029080785,-1489.98,0.00020547,2]
[323471335,1714029080794,-500.0,0.00020547,2]
[323471336,1714029080804,-958.76,0.00020547,2]
[323471337,1714029080813,-500.0,0.00020547,2]
[323471338,1714029080822,-1050.99,0.00020547,2]
[323471339,1714029080831,-685.4,0.00020547,2]
[323471340,1714029080840,-541.01,0.00020547,2]
[323471341,1714029080849,-500.0,0.00020547,2]
[323471342,1714029080859,-946.6,0.00020547,2]
[323471343,1714029080868,-1067.85,0.00020547,2]
[323471344,1714029080878,-1592.53,0.00020547,2]
[323471345,1714029080887,-1450.14,0.00020547,2]
[323471346,1714029080897,-500.0,0.00020547,2]
[323471347,1714029080906,-835.63,0.00020547,2]
[323471348,1714029080915,-770.33,0.00020547,2]
[323471349,1714029080925,-500.0,0.00020547,2]
[323471350,1714029080934,-2942.75,0.00020547,2]
[323471351,1714029080943,-769.52,0.00020547,2]
[323471352,1714029080952,-1283.68,0.00020547,2]
[323471353,1714029080962,-536.62,0.00020547,2]
[323471354,1714029080971,-575.83,0.00020547,2]
[323471355,1714029080980,-3973.6,0.00020547,2]
[323471356,1714029080990,-500.0,0.00020547,2]
[323471357,1714029080999,-2242.97,0.00020547,2]
[323471358,1714029081011,-3243.05,0.00020547,2]
[323471359,1714029081020,-500.0,0.00020547,2]
[323471360,1714029081030,-508.57,0.00020547,2]
[323471361,1714029081040,-631.78,0.00020547,2]
[323471362,1714029081051,-1375.26,0.00020547,2]
[323471363,1714029081060,-500.0,0.00020547,2]
[323471364,1714029081069,-1387.72,0.00020547,2]
[323471365,1714029081079,-500.0,0.00020547,2]
[323471366,1714029081090,-1846.12,0.00020547,2]
[323471367,1714029081099,-800.02,0.00020547,2]
[323471368,1714029081109,-646.8,0.00020547,2]
[323471369,1714029081119,-2358.88,0.00020547,2]
[323471370,1714029081129,-1011.49,0.00020547,2]
[323471371,1714029081139,-500.0,0.00020547,2]
[323471372,1714029081149,-2667.62,0.00020547,2]
[323471373,1714029081159,-500.0,0.00020547,2]
[323471374,1714029081168,-1174.54,0.00020547,2]
[323471375,1714029081177,-723.31,0.00020547,2]
[323471376,1714029081187,-592.52,0.00020547,2]
[323471377,1714029081196,-500.0,0.00020547,2]
[323471378,1714029081206,-557.02,0.00020547,2]
[323471379,1714029081216,-696.57,0.00020547,2]
[323471380,1714029081225,-646.03,0.00020547,2]
[323471381,1714029081235,-1084.85,0.00020547,2]
[323471382,1714029081244,-584.17,0.00020547,2]
[323471383,1714029081254,-500.0,0.00020547,2]
[323471384,1714029081264,-762.04,0.00020547,2]
[323471385,1714029081274,-509.24,0.00020547,2]
[323471386,1714029081284,-1828.52,0.00020547,2]
[323471387,1714029081294,-525.09,0.00020547,2]
[323471388,1714029081304,-9714.64,0.00020547,2]
[323471389,1714029081314,-500.0,0.00020547,2]
[323471390,1714029081324,-1951.68,0.00020547,2]
[323471391,1714029081334,-1197.24,0.00020547,2]
[323471392,1714029081343,-639.36,0.00020547,2]
[323471393,1714029081353,-1048.02,0.00020547,2]
[323471394,1714029081363,-2000.98,0.00020547,2]
[323471395,1714029081375,-594.44,0.00020547,2]
[323471396,1714029081385,-1048.7,0.00020547,2]